Workbook

Sheet Data
A1: Acct | B1: Date | C1: Amt | D1: Year | E1: Last row | F1: First year | G1: No. Gifts | H1: Total Amt | P1: P | Q1: Q
E2: 59741 | F2: 2002 | G2: =E2-1 -> 59740 | H2: =SUM(C2:C440264) -> 0 | P2: 14 | Q2: 9
G3: =FEPdata!X6 -> 0 | H3: =FEPdata!W6 -> 0 | P3: 14 | Q3: 4
G4: ------- need to be equal --------- | P4: 14 | Q4: 3
G5: If not, contact FEP@afpnet.org | P5: 14 | Q5: 7

Sheet StepByStep
C1: FEP Analytics | G1: =TODAY() -> 2013-12-09 | H1: 10:41:22 | I1: 19:35:37 | J1: 16:08:39
C2: By Fundraising Effectiveness Project | H2: 10:50:46 | I2: 10:50:46 | J2: 16:35:34 | K2: Include gift-trans by month range
H3: =H2-H1 -> 00:09:24 | I3: =I2-I1 -> -0.3644791667 | J3: =J2-J1 -> 00:26:55 | K3: 0 | L3: <-- 1st month
B4: Growth-in-Giving (GiG) Reports | H4: FEP Fitness | I4: Indicators | J4: Indicators | K4: 0 | L4: <-- Last month
H5: Test | I5: By Year2 | J5: Trends | K5: E.G., where '1' = Jan & '12' = Dec
A6: MUST Enable Content (above) before macros can be run. | B6: FEP Fundraising Performance Indicators | K6: 0' in either field & option ignored
B7: Using Gift Transaction Data* By Giving Level/Range | G7: 12 | H7: <-- 12 = Jan-Dec. Change Year for Fiscal Calculations.
B8: * Can be all gifts or by fundraising program
G9: Initial Year2
B10: Growth-in-Giving is measured for Year2 --------> | F10: Year2: | G10: 2012 | H10: <-- Always the most current year
F11: Year1: | G11: =G10-1 -> 2011 | H11: <-- Always the prior year
A13: Step 1 | B13: Enter gift transaction data in columns A, B and C of "Data" Worksheet - start in row 2. [See "Data" worksheet instructions]
B14: First, delete prior data from row 2 down to end of data.
A15: Step 2 | B15: Enter Year2 above for the initial year to be analyzed
A16: Step 3 | B16: Click on the "FEP Fitness Test" button ----------------------> | G16: FEP Fitness Test
B17: Can take up to 30 minutes -- or more
A18: Step 4 | B18: Print and/or save(*) FEP Analytics Tables 1 & 4 and other FEP report worksheets for analysis
A20: Steps 5-7 replace results in Tables 1 & 4 for each additional Year2
A21: Step 5 | B21: Enter another Year2 for each additional year as needed using same gift data.
A22: Step 6 | B22: Click on the "FEP Indicators by Year2" button -------------> | I22: <---Macro calculates in worksheet "FEPdata"
B23: Can take up to 10 minutes -- or more | G23: FEP Indicators by Year2
A24: Step 7 | B24: Repeat print-or-save Step 4 for each Year2. | J24: <-- MultiGift yearly analysis:
J25: Enter 'Only' to include MultiGift donors
A26: Additional "FEP Growth-in-Giving (GiG) Reports" are availble at www.afpnet.org/FEP | J26: or 'Not' to exclude MultiGift donors.
A27: 1. Goto www.afpnet.org/FEP, scroll down to and click on "FEP Growth-in-Giving (GiG) Reports" | J27: Leave blank to skip MultiGift analysis.
A28: and download the Excel-based "GiG Reports Template" that has 8 more very useful GiG reports.
A29: 2. For instruction #2 in the "GiG Reports Template," you can copy gain(loss) data sets from the FEP Fitness Test | J29: Where "X" =
A30: to the "DataInput" worksheet. Copy cells B12 to E18 in Fitness Test worksheets "FEPdata," "FEP100dn," | K30: From: | L30: 1 | M30: times yearly
A31: "FEP100to249." "FEP250to999," "FEP1000to4999," or "FEP5000up"to cells B22 to E28 in the "DataInput" worksheet | K31: To: | L31: 100 | M31: times yearly
A32: of the "GiG Reports Template" and print and/or save the 8 GiG reports.
A33: 3. Other useful FEP data and guidance can be found at www.afpnet.org/FEP.
A35: Questions or comments
A36: Email FEP@afpnet.org
A38: (*) Save FEP report worksheets by copying them (Alt-E;M;Alt-C) to new worksheets in a separate or new workbook.
A39: Then selecting and copying all cells (A1 to Xn) in each new workbook and pasting in cell A1 as values (Alt-E;S;V).

Sheet GiG Overview
A1: GiG Overview | C1: Growth-in-Giving (GiG) Reports
C2: By Fundraising Effectiveness Project
A3: =StepByStep!$A$3 -> 0
A5: First, become familiar with the FEP and the basic GiG concepts
A6: Be sure to visit http//www.afpnet.org/fep for a better understanding of the gain(loss) concepts
A7: and to learn how to use the GiG Reports to help you develop growth-oriented fundraising
A8: strategies and justify your growth-oriented budgets to your CEO and board. You will find
A9: "A Better Measure of Success - how to use GiG reports to improve fundrising performance,"
A10: Fundraising Effectiveness Survey Reports from 2004-05 forward and other useful resources.
A12: Caution
A13: ONLY enter data in the "Data" worksheet and ONLY enter data in columns A, B and C (*).
A14: This is necessary in order to preserve the formulas in all the worksheets in this Excel file.
A15: Of course, if you should overwrite a formula, you can always down load the FEP
A16: Fundraising Fitness Test Level I, v1.2.xlsm Excel file again.
A17: (*) Exceptions: comparative data fields in worksheets "Comparison" and "Comparison - FEP Ratios."
A19: There are eight GiG Reports. The eight worksheets containing seven “Growth-in-Giving
A20: (GiG) Reports” and the “What If….” report are automatically populated with the gain(loss)
A21: data you have provided. You can employ just the "Core GiG Report" or any combination of
A22: the eight reports in this template that you find useful in support of your fundraisign programs.
A24: You can prepare GiG reports for more than one fundraising activity. The queries for extracting the
A25: relevant gift transactions data from your donor database can be set up for the fundraising program
A26: overall, as well as for each fundraising activity, such as direct mail, annual gving and major gifts.
A28: You can prepare GiG reports for more than one year. You can repeat this procedure for
A29: more than one year. This will enable you to measure and compare growth in giving over time
A30: by gain/loss category (see "Comparison" worksheet).
A32: Exclude one-time major gifts. Large one-time major gifts can distort year-to-year GiG
A33: reports and should be excluded from the analysis for both year 1 and year 2.
A35: Definitions for Gain/Loss categories in GiG Reports:
A36: New – donors who never gave prior to year 2 (current year)
A37: Recaptured – previously lapsed donors who gave again in year 2.
A38: Upgraded – donors who gave more in year 2 than in year 1 (previous year).
A39: Same – donors who gave the same amount in both years.
A40: Downgraded – donors who gave less in year 2 than in year 1.
A41: Lapsed new – new, first-time donors in year 1 who did not give in year 2
A42: Lapsed repeat – other lapsed donors who gave in year 1 and prior years but not in year 2
C44: ------------- Donations made --------------
C45: Before | D45: During | E45: During
C46: Year 1 | D46: Year 1 | E46: Year 1
B47: New | C47: no | D47: no | E47: yes
B48: Recaptured | C48: yes | D48: no | E48: yes
B49: Upgraded | C49: n/a | D49: yes | E49: yes
B50: Same | C50: n/a | D50: yes | E50: yes
B51: Downgraded | C51: n/a | D51: yes | E51: yes
B52: Lapsed new | C52: no | D52: yes | E52: no
B53: Lapsed repeat | C53: yes | D53: yes | E53: no
A55: =A1 -> GiG Overview | D55: =FEPdata!$C$1 -> 0 | H55: Page 2
A57: Descriptions of Growth-in-Giving (GiG) Reports
A59: There are 7 useful growth-oriented fundraising reports. Important: all required data
A60: is entered only into the “Data” worksheet – all the other worksheets are populated
A61: automatically by macro and formula from the “Data” worksheet (*).
A62: (*) Exception: comparative data fields in worksheet "Comparison - FEP Ratios."
A64: NOTE: Crossreferences to tables and figures in the "A Better measure of Success" article (*) are in [..]
B65: (*) A copy of the article in PDF is available at
B66: http://www.afpnet.org//Audiences/ReportsResearchDetail.cfm?ItemNumber=5181.
B67: Or, you can goto http://www.afpnet.org/FEP and find “AFP's Growth-in-Giving (GiG) Reports”
B68: on the Fundraising Effectiveness Project home page.
A70: Core GiG Report | D70: [Tables 2 & 3 and Figure 3]
A71: The centerpiece of the GiG Reports: gains and losses in amount of gifts by gain(loss) category
A73: The core AFP Growth-in-Giving (GiG) Report provides a concise, yet informative picture
A74: of fundraising gains and losses - growth in giving and attrition - together in a simple,
A75: reader-friendly format that the executive staff and board members can understand.
A77: Fundraising managers can use GiG Reports with CEOs and boards to help justify
A78: growth-oriented fundraising budgets
A80: Number of Donors
A81: GiG Report for growth in number of donors.—by gain(loss) category
A83: GIG Report - Totals | D83: [Figure 1]
A84: GiG Report showing total gains in gifts, total losses in gifts and net gain(loss) in gifts.
A86: What if | D86: [Table 1 and Figure 2]
A87: The "What If" Gains Increased and/or Losses Decreased? report shows the enormous
A88: potential for increasing the organization’s “Net” with various levels of improved gain(lloss) performance.
A90: GiG Report Worksheets With Gain (Loss) Ratios
A91: All gain(loss) statistics published in the annual Fundraising Effectiveness Survey reports for use
A92: in comparative analysis are in the form of ratios(**).
A94: GiG Report - Ratios | D94: [Table 4]
A95: The “Core GiG Report” with columns added for “Gain(Loss) ratios” and “Percentage Distribution”
A97: Number of Donors - Ratios | D97: [Table 5]
A98: The “Number of Donors” GiG report with columns added for “Gain(Loss) ratios,” “Percentage
A99: Distribution,” and “Average Gift Size.”
A101: Comparison – FEP Ratios
A102: The “GiG Report - Ratios” GiG report with columns added for comparing “FEP Survey
A103: Ratios(*)” to the Year 2 “Gain(Loss) ratios” column plus a column for “Differences” between the
A104: organization’s Year 2.gain(loss) ratios and FEP survey ratios(**).
A106: (**) Comparative FEP survey ratios by size, subsector, region and age for several years can be
A107: found in the appendices of the annual Fundraising Effectiveness Survey reports at
A108: http://www.afpnet.org/FEP.

Sheet Core GiG Report
A1: Core GiG Report | C1: Growth-in-Giving (GiG) Report
C2: By Fundraising Effectiveness Project
A4: [Table 3 & Figure 3 *] | D4: Gains & Losses for | E4: =StepByStep!$G$10 -> 2012
B6: Gain(Loss) Category | C6: Year 1 | D6: Year 2 | E6: Gains | G6: Caution: if you
B7: For Year 2 Donors | C7: =D7-1 -> 2011 | D7: =StepByStep!$G$10 -> 2012 | E7: (Losses) | G7: enter data in this
C8: (A$) | D8: (B$) | E8: (C$=B-A) | G8: worksheet, you
G9: will destroy the
A10: Gains | D10: Amount of Gifts | G10: formula cells.
B11: New | C11: n/a | D11: =FEPdata!E12 -> 133838 | E11: =D11 -> 133838
B12: Recaptured | C12: n/a | D12: =FEPdata!E13 -> 54477 | E12: =D12 -> 54477
B13: Upgraded | C13: =FEPdata!C14 -> 183332 | D13: =FEPdata!E14 -> 307294 | E13: =D13-C13 -> 123962
B14: Subtotal gains | C14: =SUM(C11:C13) -> 183332 | D14: =SUM(D11:D13) -> 495609 | E14: =D14-C14 -> 312277
A15: Same | C15: =FEPdata!C15 -> 54201 | D15: =FEPdata!E15 -> 54201 | E15: =D15-C15 -> 0
A16: Losses
B17: Downgraded | C17: =FEPdata!C16 -> 314530 | D17: =FEPdata!E16 -> 187866 | E17: =D17-C17 -> -126664
B18: Lapsed new | C18: =FEPdata!C17 -> 103250 | D18: n/a | E18: =-C18 -> -103250
B19: Lapsed repeat | C19: =FEPdata!C18 -> 162936 | D19: n/a | E19: =-C19 -> -162936
B20: Subtotal losses | C20: =SUM(C16:C19) -> 580716 | D20: =SUM(D16:D19) -> 187866 | E20: =D20-C20 -> -392850
A22: Total - gifts | C22: =C14+C15+C20 -> 818249 | D22: =D14+D15+D20 -> 737676 | E22: =D22-C22 -> -80573
E23: Overall net growth in giving
G26: For chart:
H27: Gifts
G28: New | H28: =E11 -> 133838
G29: Recaptured | H29: =E12 -> 54477
G30: Upgraded | H30: =E13 -> 123962
G31: Total gains | H31: =E14 -> 312277
G32: Downgraded | H32: =E17 -> -126664
G33: Laps new | H33: =E18 -> -103250
G34: Laps repeat | H34: =E19 -> -162936
G35: Total losses | H35: =E20 -> -392850
G36: Net | H36: =E22 -> -80573
A41: Definitions for Gain/Loss categories in GiG Reports:
A42: New – donors who never gave prior to year 2 (current year)
A43: Recaptured – previously lapsed donors who gave again in year 2.
A44: Upgraded – donors who gave more in year 2 than in year 1 (previous year).
A45: Same – donors who gave the same amount in both years.
A46: Downgraded – donors who gave less in year 2 than in year 1.
A47: Lapsed new – new, first-time donors in year 1 who did not give in year 2
A48: Lapsed repeat – other lapsed donors who gave in yr 1 & prior yrs but not in yr 2
A50: * Tables and figures in A Better Measure of Success article

Sheet Number of Donors
A1: Number of Donors | C1: Growth-in-Giving (GiG) Report
C2: By Fundraising Effectiveness Project
E4: Gains & Losses in Number of Donors for | F4: =StepByStep!$G$10 -> 2012
B6: Gain(Loss) Category | C6: Year 1 | D6: Year 2 | E6: Gains | H6: Caution: if you
B7: For Year 2 Donors | C7: =D7-1 -> 2011 | D7: =StepByStep!$G$10 -> 2012 | E7: (Losses) | H7: enter data in this
C8: (A) | D8: (B) | E8: (C=B-A) | H8: worksheet, you
H9: will destroy the
A10: Gains | D10: Number of Donors | H10: formula cells.
B11: New | C11: n/a | D11: =FEPdata!D12 -> 1012 | E11: =D11 -> 1012
B12: Recaptured | C12: n/a | D12: =FEPdata!D13 -> 275 | E12: =D12 -> 275
B13: Upgraded | C13: =FEPdata!B14 -> 582 | D13: =FEPdata!D14 -> 582 | E13: =D13-C13 -> 0
B14: Subtotal gains | C14: =SUM(C11:C13) -> 582 | D14: =SUM(D11:D13) -> 1869 | E14: =D14-C14 -> 1287
A15: Same | C15: =FEPdata!B15 -> 299 | D15: =FEPdata!D15 -> 299 | E15: =D15-C15 -> 0
A16: Losses
B17: Downgraded | C17: =FEPdata!B16 -> 602 | D17: =FEPdata!D16 -> 602 | E17: =D17-C17 -> 0
B18: Lapsed new | C18: =FEPdata!B17 -> 619 | D18: n/a | E18: =-C18 -> -619
B19: Lapsed repeat | C19: =FEPdata!B18 -> 405 | D19: n/a | E19: =-C19 -> -405
B20: Subtotal losses | C20: =SUM(C16:C19) -> 1626 | D20: =SUM(D16:D19) -> 602 | E20: =D20-C20 -> -1024
A22: Total - gifts | C22: =C14+C15+C20 -> 2507 | D22: =D14+D15+D20 -> 2770 | E22: =D22-C22 -> 263
I26: Gifts
H27: New | I27: =E11 -> 1012
H28: Recaptured | I28: =E12 -> 275
H29: Upgraded | I29: =E13 -> 0
H30: Total gains | I30: =E14 -> 1287
H31: Downgraded | I31: =E17 -> 0
H32: Laps new | I32: =E18 -> -619
H33: Laps repeat | I33: =E19 -> -405
H34: Total losses | I34: =E20 -> -1024
A40: Definitions for Gain/Loss categories in GiG Reports:
A41: New – donors who never gave prior to year 2 (current year)
A42: Recaptured – previously lapsed donors who gave again in year 2.
A43: Upgraded – donors who gave more in year 2 than in year 1 (previous year).
A44: Same – donors who gave the same amount in both years.
A45: Downgraded – donors who gave less in year 2 than in year 1.
A46: Lapsed new – new, first-time donors in year 1 who did not give in year 2
A47: Lapsed repeat – other lapsed donors who gave in year 1 and prior years but not in year 2

Sheet GiG Report - Totals
A1: GiG Report - Totals | C1: Growth-in-Giving (GiG) Report
C2: By Fundraising Effectiveness Project
A4: [Figure 1*] | D4: Gains & Losses for | E4: =StepByStep!$G$10 -> 2012
B6: Gain(Loss) Category | C6: Year 1 | D6: Year 2 | E6: Gains | G6: Caution: if you
B7: For Year 2 Donors | C7: =D7-1 -> 2011 | D7: =StepByStep!$G$10 -> 2012 | E7: (Losses) | G7: enter data in this
C8: (A) | D8: (B) | E8: (C=B-A) | G8: worksheet, you
G9: will destroy the
B10: Total gains | C10: ='Core GiG Report'!C14 -> 183332 | D10: ='Core GiG Report'!D14 -> 495609 | E10: =D10-C10 -> 312277 | G10: formula cells.
B12: Same | C12: =D12 -> 54201 | D12: ='Core GiG Report'!D15 -> 54201 | E12: =D12-C12 -> 0
B14: Total losses | C14: ='Core GiG Report'!C20 -> 580716 | D14: ='Core GiG Report'!D20 -> 187866 | E14: =D14-C14 -> -392850
B16: Total and net gain[loss] | C16: =C10+C12+C14 -> 818249 | D16: =D10+D12+D14 -> 737676 | E16: =D16-C16 -> -80573
E17: Overall growth in giving
A38: * Tables and figures in A Better Measure of Success article

Sheet What if
A1: What If | C1: Growth-in-Giving (GiG) Report
C2: By Fundraising Effectiveness Project
A4: "What If" Gains Increased and/or Losses Decreased? | G4: =StepByStep!$G$10 -> 2012
A5: [Table 1 and Figure 2 *]
C6: Total | D6: Total | F6: What if net | H6: Caution: if you
C7: Gains | D7: Losses | E7: Net | F7: Increase | H7: enter data in this
C8: (A) | D8: (B) | E8: (A-B) | F8: (%) | H8: worksheet, you
A9: Current Year-2 results | C9: ='Core GiG Report'!E14 -> 312277 | D9: ='Core GiG Report'!E20 -> -392850 | E9: =C9+D9 -> -80573 | H9: will destroy the
A10: What if gains increased by | C10: =C9*$A11 -> 62455.4 | H10: formula cells.
A11: 0.2 | C11: =C$9+C10 -> 374732.4 | D11: =D$9+D10 -> -392850 | E11: =C11+D11 -> -18117.6 | F11: =(E11-E$9)/E$9 -> -0.7751405558
A12: What if losses decreased by | D12: =-D11*$A13 -> 78570
A13: 0.2 | C13: =C$9+C12 -> 312277 | D13: =D$9+D12 -> -314280 | E13: =C13+D13 -> -2003 | F13: =(E13-E$9)/E$9 -> -0.9751405558
A14: What if losses decreased by | D14: =-D11*$A15 -> 157140
A15: 0.4 | C15: =C$9+C14 -> 312277 | D15: =D$9+D14 -> -235710 | E15: =C15+D15 -> 76567 | F15: =(E15-E$9)/E$9 -> -1.950281112
A16: What if gains increased | C16: =C10 -> 62455.4 | D16: =D14 -> 157140
A17: and losses decreased | C17: =C$9+C16 -> 374732.4 | D17: =D$9+D16 -> -235710 | E17: =C17+D17 -> 139022.4 | F17: =(E17-E$9)/E$9 -> -2.725421667
I20: Current Year 2 | J20: Gains +20% | K20: Losses +20% | L20: Losses +40% | M20: Gains +20%, Losses +40%
H22: Gains | I22: =$C9 -> 312277 | J22: =$C11 -> 374732.4 | K22: =$C13 -> 312277 | L22: =$C15 -> 312277 | M22: =$C17 -> 374732.4
H23: Losses | I23: =$D9 -> -392850 | J23: =$D11 -> -392850 | K23: =$D13 -> -314280 | L23: =$D15 -> -235710 | M23: =$D17 -> -235710
H24: Net | I24: =$E9 -> -80573 | J24: =$E11 -> -18117.6 | K24: =$E13 -> -2003 | L24: =$E15 -> 76567 | M24: =$E17 -> 139022.4
A33: * Tables and figures in A Better Measure of Success article

Sheet GiG Report - Ratios
A1: GiG Report - Ratios | C1: Growth-in-Giving (GiG) Report
C2: By Fundraising Effectiveness Project
A4: [Table 4 *] | E4: Gains & Losses for | F4: =StepByStep!$G$10 -> 2012
B6: Gain(Loss) Category | C6: Year 1 | D6: Year 2 | E6: Gains | F6: Gain(Loss) | G6: Percentage | I6: Caution: if you
B7: For Year 2 Donors | C7: =D7-1 -> 2011 | D7: =StepByStep!$G$10 -> 2012 | E7: (Losses) | F7: Ratio | G7: Distribution | I7: enter data in this
C8: (A) | D8: (B) | E8: (C=B-A) | F8: (D%= | G8: (E%= | I8: worksheet, you
F9: C/totA) | G9: C/tots in C) | I9: will destroy the
A10: Gains | D10: Amount of Gifts | I10: formula cells.
B11: New | C11: n/a | D11: =FEPdata!E12 -> 133838 | E11: =D11 -> 133838 | F11: =E11/(C$22+0.00001) -> 0.1635663472 | G11: =E11/(E$14+0.00001) -> 0.42858744
B12: Recaptured | C12: n/a | D12: =FEPdata!E13 -> 54477 | E12: =D12 -> 54477 | F12: =E12/(C$22+0.00001) -> 0.06657753324 | G12: =E12/(E$14+0.00001) -> 0.1744508881
B13: Upgraded | C13: =FEPdata!C14 -> 183332 | D13: =FEPdata!E14 -> 307294 | E13: =D13-C13 -> 123962 | F13: =E13/(C$22+0.00001) -> 0.1514966715 | G13: =E13/(E$14+0.00001) -> 0.3969616718
B14: Subtotal gains | C14: =SUM(C11:C13) -> 183332 | D14: =SUM(D11:D13) -> 495609 | E14: =D14-C14 -> 312277 | F14: =E14/(C$22+0.00001) -> 0.381640552 | G14: =E14/(E$14+0.00001) -> 1
A15: Same | C15: =FEPdata!C15 -> 54201 | D15: =FEPdata!E15 -> 54201 | E15: =D15-C15 -> 0 | F15: =E15/(C$22+0.00001) -> 0
A16: Losses
B17: Downgraded | C17: =FEPdata!C16 -> 314530 | D17: =FEPdata!E16 -> 187866 | E17: =D17-C17 -> -126664 | F17: =E17/(C$22+0.00001) -> -0.1547988448 | G17: =E17/(E$20+0.00001) -> 0.3224233168
B18: Lapsed new | C18: =FEPdata!C17 -> 103250 | D18: n/a | E18: =-C18 -> -103250 | F18: =E18/(C$22+0.00001) -> -0.1261840833 | G18: =E18/(E$20+0.00001) -> 0.2628229604
B19: Lapsed repeat | C19: =FEPdata!C18 -> 162936 | D19: n/a | E19: =-C19 -> -162936 | F19: =E19/(C$22+0.00001) -> -0.1991276494 | G19: =E19/(E$20+0.00001) -> 0.4147537228
B20: Subtotal losses | C20: =SUM(C16:C19) -> 580716 | D20: =SUM(D16:D19) -> 187866 | E20: =D20-C20 -> -392850 | F20: =E20/(C$22+0.00001) -> -0.4801105776 | G20: =E20/(E$20+0.00001) -> 1
A22: Total - gifts | C22: =C14+C15+C20 -> 818249 | D22: =D14+D15+D20 -> 737676 | E22: =D22-C22 -> -80573 | F22: =E22/(C$22+0.00001) -> -0.09847002563
F23: Overall rate of growth
K26: Gifts
J27: New | K27: =G11 -> 0.42858744
J28: Recaptured | K28: =G12 -> 0.1744508881
J29: Upgraded | K29: =G13 -> 0.3969616718
J30: Total gains | K30: =G14 -> 1
J31: Downgraded | K31: =G17 -> 0.3224233168
J32: Laps new | K32: =G18 -> 0.2628229604
J33: Laps repeat | K33: =G19 -> 0.4147537228
J34: Total losses | K34: =G20 -> 1
A40: Definitions for Gain/Loss categories in GiG Reports:
A41: New – donors who never gave prior to year 2 (current year)
A42: Recaptured – previously lapsed donors who gave again in year 2.
A43: Upgraded – donors who gave more in year 2 than in year 1 (previous year).
A44: Same – donors who gave the same amount in both years.
A45: Downgraded – donors who gave less in year 2 than in year 1.
A46: Lapsed new – new, first-time donors in year 1 who did not give in year 2
A47: Lapsed repeat – other lapsed donors who gave in year 1 and prior years but not in year 2
A49: * Tables and figures in A Better Measure of Success article

Sheet Number of Donors - Ratios
A1: Number of Donors - Ratios | D1: Growth-in-Giving (GiG) Report
D2: By Fundraising Effectiveness Project
A3: [Table 5 *]
F4: Gains & Losses in Number of Donors for | G4: =StepByStep!$G$10 -> 2012
H5: Year 2
B6: Gain(Loss) Category | C6: Year 1 | D6: Year 2 | E6: Gains | F6: Gain/Loss | G6: Percentage | H6: Average | J6: Caution: if you
B7: For Year 2 Donors | C7: =D7-1 -> 2011 | D7: =StepByStep!$G$10 -> 2012 | E7: (Losses) | F7: Ratio | G7: Distribution | H7: Giftsize | J7: enter data in this
C8: (A) | D8: (B) | E8: (C=B-A) | F8: (D%= | G8: (E%= | H8: (F$= | J8: worksheet, you
F9: C/totA) | G9: C/tots in C) | H9: Gift$/B) | J9: will destroy the
A10: Gains | D10: Number of Donors | J10: formula cells.
B11: New | C11: n/a | D11: =FEPdata!D12 -> 1012 | E11: =D11 -> 1012 | F11: =E11/(C$22+0.00001) -> 0.4036697232 | G11: =E11/(E$14+0.00001) -> 0.7863247802 | H11: ='Core GiG Report'!D11/D11 -> 132.2509881
B12: Recaptured | C12: n/a | D12: =FEPdata!D13 -> 275 | E12: =D12 -> 275 | F12: =E12/(C$22+0.00001) -> 0.1096928596 | G12: =E12/(E$14+0.00001) -> 0.213675212 | H12: ='Core GiG Report'!D12/D12 -> 198.0981818
B13: Upgraded | C13: =FEPdata!B14 -> 582 | D13: =FEPdata!D14 -> 582 | E13: =D13-C13 -> 0 | F13: =E13/(C$22+0.00001) -> 0 | G13: =E13/(E$14+0.00001) -> 0 | H13: ='Core GiG Report'!D13/D13 -> 527.9965636
B14: Subtotal gains | C14: =SUM(C11:C13) -> 582 | D14: =SUM(D11:D13) -> 1869 | E14: =D14-C14 -> 1287 | F14: =E14/(C$22+0.00001) -> 0.5133625827 | G14: =E14/(E$14+0.00001) -> 0.9999999922 | H14: ='Core GiG Report'!D14/D14 -> 265.1733547
A15: Same | C15: =FEPdata!B15 -> 299 | D15: =FEPdata!D15 -> 299 | E15: =D15-C15 -> 0 | F15: =E15/(C$22+0.00001) -> 0 | H15: ='Core GiG Report'!D15/D15 -> 181.2742475
A16: Losses
B17: Downgraded | C17: =FEPdata!B16 -> 602 | D17: =FEPdata!D16 -> 602 | E17: =D17-C17 -> 0 | F17: =E17/(C$22+0.00001) -> 0 | G17: =E17/(E$20+0.00001) -> 0 | H17: ='Core GiG Report'!D17/D17 -> 312.0697674
B18: Lapsed new | C18: =FEPdata!B17 -> 619 | D18: n/a | E18: =-C18 -> -619 | F18: =E18/(C$22+0.00001) -> -0.2469086548 | G18: =E18/(E$20+0.00001) -> 0.6044921934 | H18: n/a
B19: Lapsed repeat | C19: =FEPdata!B18 -> 405 | D19: n/a | E19: =-C19 -> -405 | F19: =E19/(C$22+0.00001) -> -0.1615476659 | G19: =E19/(E$20+0.00001) -> 0.3955078164 | H19: n/a
B20: Subtotal losses | C20: =SUM(C16:C19) -> 1626 | D20: =SUM(D16:D19) -> 602 | E20: =D20-C20 -> -1024 | F20: =E20/(C$22+0.00001) -> -0.4084563207 | G20: =E20/(E$20+0.00001) -> 1.00000001 | H20: n/a
A22: Total - gifts | C22: =C14+C15+C20 -> 2507 | D22: =D14+D15+D20 -> 2770 | E22: =D22-C22 -> 263 | F22: =E22/(C$22+0.00001) -> 0.104906262 | H22: ='Core GiG Report'!D22/D22 -> 266.3090253
F23: Overall rate of growth
K26: Gifts
J27: New | K27: =G11 -> 0.7863247802
J28: Recaptured | K28: =G12 -> 0.213675212
J29: Upgraded | K29: =G13 -> 0
J30: Total gains | K30: =G14 -> 0.9999999922
J31: Downgraded | K31: =G17 -> 0
J32: Laps new | K32: =G18 -> 0.6044921934
J33: Laps repeat | K33: =G19 -> 0.3955078164
J34: Total losses | K34: =G20 -> 1.00000001
A40: Definitions for Gain/Loss categories in GiG Reports:
A41: New – donors who never gave prior to year 2 (current year)
A42: Recaptured – previously lapsed donors who gave again in year 2.
A43: Upgraded – donors who gave more in year 2 than in year 1 (previous year).
A44: Same – donors who gave the same amount in both years.
A45: Downgraded – donors who gave less in year 2 than in year 1.
A46: Lapsed new – new, first-time donors in year 1 who did not give in year 2
A47: Lapsed repeat – other lapsed donors who gave in year 1 and prior years but not in year 2
A49: * Tables and figures in A Better Measure of Success article

Sheet FEPdata
A1: FEPdata | F1: =TODAY() -> 2013-12-09 | H1: Sort Largest Year (col. G) - DESC | I1: 10:48:17 | M1: Last row | N1: =TODAY() -> 2013-12-09 | O1: 10:48:17 | Q1: Step | R1: Sub | S1: Start Sub | T1: End Sub | U1: Sub time | V1: Last cell
A2: =StepByStep!$A$3 -> 0 | E2: Current Year 2 | H2: 10:09:11 | M2: 14981 | O2: 10:49:32
A3: Growth-in-Giving is measured for Year 2: | H3: From --> | I3: =K8 -> 31 | J3: <---- ="K" & row | M3: 14981 | O3: =O2-O1 -> 00:01:15 | Q3: All | R3: FitnessAll | S3: 05:41:28 | T3: 07:37:36 | U3: =T3-S3 -> 01:56:08 | W3: Step 3 - Data2
D4: Year 2 | E4: =StepByStep!G10 -> 2012 | H4: To --> | I4: =L19 -> 14981 | J4: <---- ="L" & row | O4: FEPdata | Q4: 1 | R4: SortData | S4: 10:41:22 | T4: 10:41:22 | U4: 00:00:00 | W4: Amt | X4: Gifts
A5: All donors | B5: All | E5: =StepByStep!$G$7 -> 12 | F5: <-- Year-end month | Q5: 2 | R5: DateYr | S5: 10:41:22 | T5: 10:43:50 | U5: 00:02:28 | W5: Control | X5: Control
A6: Gain(Loss) Data - Software Extract for Year 2 and Year 1 data | K6: Col K | L6: Col L | Q6: 3 | R6: Data2 | S6: 10:43:50 | T6: 10:47:16 | U6: 00:03:26 | W6: =SUM(C30:C185050) -> 0 | X6: =SUM(D30:D185050) -> 0 | Y6: <--- FEPdata worksheet
J7: Row | K7: From | L7: To | M7: Count | Q7: 4 | R7: FirstYr | S7: 10:47:16 | T7: 10:47:39 | U7: 00:00:23 | W7: =SUM(Data!C2:'Data'!C440264) -> 0 | X7: =Data!E2-1 -> 59740 | Y7: <--- "Data" worksheet
B8: Number of | C8: Amount of | D8: Number of | E8: Amount of | H8: 5,000 up | I8: 25,000 & up | J8: 8 | K8: 31 | L8: 66 | M8: =L8-K8+1 -> 36 | Q8: 5 | R8: LargestYrAmt | S8: 10:47:39 | T8: 10:47:56 | U8: 00:00:17 | W8: =W6-W7 -> 0 | X8: =X6-X7 -> -59740 | Y8: <--- needs to be zero
A9: Gain(Loss) | B9: =D9-1 -> 2011 | C9: =E9-1 -> 2011 | D9: =$E4 -> 2012 | E9: =$E4 -> 2012 | I9: 10,000-24,999 | J9: 9 | K9: =L8+1 -> 67 | L9: 143 | M9: =L9-L8 -> 77 | Q9: 6 | R9: FEPdataToRow | S9: 10:47:56 | T9: 10:48:14 | U9: 00:00:18
A10: Category | B10: Donors | C10: Gifts ($) | D10: Donors | E10: Gifts ($) | I10: 5,000-9,999 | J10: 10 | K10: 144 | L10: 249 | M10: 106 | Q10: 7 | R10: CopyData2 | S10: 10:48:14 | T10: 10:48:17 | U10: 00:00:03
H11: 1,000-4,999 | I11: 2,500-4,999 | J11: 11 | K11: 250 | L11: 417 | M11: 168 | Q11: 8 | R11: FEP5DataSets | S11: 10:48:17 | T11: 10:50:46 | U11: =T11-S11 -> 00:02:29
A12: New | B12: n/a | C12: n/a | D12: 1012 | E12: 133838 | I12: 1,000-2,499 | J12: 12 | K12: 418 | L12: 1061 | M12: 644 | R12: Total - 1 to 8 | U12: =SUM(U4:U11) -> 00:09:24
A13: Recaptured | B13: n/a | C13: n/a | D13: 275 | E13: 54477 | H13: 250-999 | I13: 500-999 | J13: 13 | K13: 1062 | L13: 2414 | M13: 1353
A14: Upgraded | B14: 582 | C14: 183332 | D14: 582 | E14: 307294 | I14: 250-499 | J14: 14 | K14: 2415 | L14: 4953 | M14: 2539
A15: Same | B15: 299 | C15: 54201 | D15: 299 | E15: 54201 | H15: 100-249 | I15: 100-249 | J15: 15 | K15: 4954 | L15: 9606 | M15: 4653 | R15: FEPdataToRpt | S15: 09:30:02 | T15: 09:56:00 | U15: =T15-S15 -> 00:25:58 | V15: <--old
A16: Downgraded | B16: 602 | C16: 314530 | D16: 602 | E16: 187866 | H16: Under 100 | I16: 50-99 | J16: 16 | K16: 9607 | L16: 12101 | M16: 2495 | R16: Ignore | T16: Delete from PSI, etc.
A17: Lapsed new | B17: 619 | C17: 103250 | D17: n/a | E17: n/a | I17: 25-49 | J17: 17 | K17: 12102 | L17: 14121 | M17: 2020
A18: Lapsed repeat | B18: 405 | C18: 162936 | D18: n/a | E18: n/a | F18: GiG# | G18: GiG$ | I18: 10-24 | J18: 18 | K18: 14122 | L18: 14884 | M18: 763 | T18: Ignore
A19: Total | B19: =SUM(B12:B18) -> 2507 | C19: =SUM(C12:C18) -> 818249 | D19: =SUM(D12:D18) -> 2770 | E19: =SUM(E12:E18) -> 737676 | F19: =(D19-B19)/B19 -> 0.1049062625 | G19: =(E19-C19)/C19 -> -0.09847002563 | I19: Under 10 | J19: 19 | K19: 14885 | L19: 14981 | M19: 97 | P19: Must run all steps in order!! | T19: Leaves 1st year data in FEP100dn, etc!!
A20: 36 hilighted data fields are retrieved from gift transaction data below | M20: =SUM(M8:M19) -> 14951 | T20: Generates "FEPrptData" worksheet - Trend analysis
B21: Number | C21: Gift$
A22: New in year 1 | B22: 905 | C22: 186095 | D22: <-- i.e., last year's new donors and gift$
A23: Database EOY1 | B23: 5910 | D23: <-- i.e., Total number of donors on file at end of Year1 | K23: 6922 | L23: <-- i.e., TOTAL number of donors on file
A24: One time donors | B24: 3069 | C24: 594358 | D24: <-- i.e., Number of one-time donors and gifts | K24: 10946 | L24: <-- Total # of gifts in Year2 (vs #donors)
A25: Recaptured lapsed 1 year | D25: 167 | E25: 45006 | F25: <-- Portion of Recaptured | K25: 1025 | L25: 1641365 | M25: <-- Total # & $ for monthly donors in database
A26: Monthly donors in Year2 | D26: 629 | E26: 352864 | F26: <-- i.e., Year2 donors making 6 to 24 gifts. | K26: 41 | L26: 14903 | M26: <-- Portion NEW monthly donors in Year2 | S26: <-- deletes A31:P200000
B28: [Asc] | D28: Gifts | F28: First | G28: Largest | H28: Monthly | I28: Gain/Loss | L28: Years of | M28: One time | N28: Recap 1
A29: Acct | B29: Year | C29: AmtYr | D29: Per year | E29: Seq# | F29: Year | G29: Year | H29: Giving | I29: Category | L29: Giving | M29: Donor | N29: Donor
A30: A | B30: B | C30: C | D30: D | E30: E | F30: F | G30: G | H30: H | I30: I | L30: L | M30: M | N30: N

Sheet FEP100Dn
A1: FEP100Dn | C1: Fundraising Effectiveness Survey - 2012 | G1: =TODAY() -> 2013-12-09 | I1: Sort Largest Year (col. G) - DESC | J1: 15:41:59 | N1: =TODAY() -> 2013-12-09 | O1: 10:50:14
A2: =StepByStep!$A$3 -> 0 | O2: 10:50:46
A3: Growth-in-Giving is measured for Year 2: | H3: From --> | I3: =K16 -> 9607 | J3: <---- ="K" & row | O3: =O2-O1 -> 00:00:32
D4: Year 2 | E4: =FEPdata!E4 -> 2012 | H4: To --> | I4: =L19 -> 14981 | J4: <---- ="L" & row | O4: FEPdata
A5: Under $100 | B5: A 100 dn | E5: =StepByStep!$G$7 -> 12 | F5: <-- Year-end month
A6: Gain(Loss) Data - Software Extract for Year 2 and Year 1 data | K6: Col K | L6: Col L
J7: Row | K7: From | L7: To | M7: Count
B8: Number of | C8: Amount of | D8: Number of | E8: Amount of | H8: 5,000 up | I8: 25,000 & up | J8: 8 | K8: 31 | L8: 66 | M8: =L8-K8+1 -> 36
A9: Gain(Loss) | B9: =D9-1 -> 2011 | C9: =E9-1 -> 2011 | D9: =$E4 -> 2012 | E9: =$E4 -> 2012 | I9: 10,000-24,999 | J9: 9 | K9: =L8+1 -> 67 | L9: 143 | M9: =L9-L8 -> 77
A10: Category | B10: Donors | C10: Gifts ($) | D10: Donors | E10: Gifts ($) | I10: 5,000-9,999 | J10: 10 | K10: 144 | L10: 249 | M10: 106
H11: 1,000-4,999 | I11: 2,500-4,999 | J11: 11 | K11: 250 | L11: 417 | M11: 168
A12: New | B12: n/a | C12: n/a | D12: 684 | E12: 23326 | I12: 1,000-2,499 | J12: 12 | K12: 418 | L12: 1061 | M12: 644
A13: Recaptured | B13: n/a | C13: n/a | D13: 125 | E13: 4465 | H13: 250-999 | I13: 500-999 | J13: 13 | K13: 1062 | L13: 2414 | M13: 1353
A14: Upgraded | B14: 99 | C14: 2631 | D14: 99 | E14: 4756 | I14: 250-499 | J14: 14 | K14: 2415 | L14: 4953 | M14: 2539
A15: Same | B15: 89 | C15: 3540 | D15: 89 | E15: 3540 | H15: 100-249 | I15: 100-249 | J15: 15 | K15: 4954 | L15: 9606 | M15: 4653
A16: Downgraded | B16: 109 | C16: 5519 | D16: 109 | E16: 3069 | H16: Under 100 | I16: 50-99 | J16: 16 | K16: 9607 | L16: 12101 | M16: 2495
A17: Lapsed new | B17: 441 | C17: 14912 | D17: n/a | E17: n/a | I17: 25-49 | J17: 17 | K17: 12102 | L17: 14121 | M17: 2020
A18: Lapsed repeat | B18: 156 | C18: 5138 | D18: n/a | E18: n/a | F18: GiG# | G18: GiG$ | I18: 10-24 | J18: 18 | K18: 14122 | L18: 14884 | M18: 763
A19: Total | B19: =SUM(B12:B18) -> 894 | C19: =SUM(C12:C18) -> 31740 | D19: =SUM(D12:D18) -> 1106 | E19: =SUM(E12:E18) -> 39156 | F19: =(D19-B19)/B19 -> 0.2371364653 | G19: =(E19-C19)/C19 -> 0.2336483932 | I19: Under 10 | J19: 19 | K19: 14885 | L19: 14981 | M19: 97
A20: 36 hilighted data fields are retrieved from gift transaction data below | M20: =SUM(M8:M19) -> 14951
B21: Number | C21: Gift$
A22: New in year 1 | B22: 545 | C22: 18836 | D22: <-- i.e., last year's new donors and gift$
A23: Database EOY1 | B23: 3089 | D23: <-- i.e., Total number of donors on file at end of Year1 | K23: 3773 | L23: <-- i.e., TOTAL number of donors on file
A24: One time donors | B24: 2214 | C24: 77232 | D24: <-- i.e., Number of one-time donors and gifts | K24: 1434 | L24: <-- Total # of gifts in Year2 (vs #donors)
A25: Recaptured lapsed 1 year | D25: 70 | E25: 2651 | F25: <-- Portion of Recaptured | K25: 49 | L25: 6906 | M25: <-- Total # & $ for monthly donors in database
A26: Monthly donors in Year2 | D26: 10 | E26: 712 | F26: <-- i.e., Year2 donors making 6 to 24 gifts. | K26: 2 | L26: 144 | M26: <-- Portion NEW monthly donors in Year2
B28: [Asc] | D28: Gifts | F28: First | G28: Largest | H28: Monthly | I28: Gain/Loss | L28: Years of | M28: One time | N28: Recap 1
A29: Acct | B29: Year | C29: AmtYr | D29: Per year | E29: Seq# | F29: Year | G29: Year | H29: Giving | I29: Category | L29: Giving | M29: Donor | N29: Donor
A30: A | B30: B | C30: C | D30: D | E30: E | F30: F | G30: G | H30: H | I30: I | L30: L | M30: M | N30: N

Sheet FEP100to249
A1: FEP100to249 | C1: Fundraising Effectiveness Survey - 2012 | G1: =TODAY() -> 2013-12-09 | I1: Sort Largest Year (col. G) - DESC | N1: =TODAY() -> 2013-12-09 | O1: 10:49:51
A2: =StepByStep!$A$3 -> 0 | O2: 10:50:14
A3: Growth-in-Giving is measured for Year 2: | H3: From --> | I3: =K15 -> 4954 | J3: <---- ="K" & row | O3: =O2-O1 -> 00:00:23
D4: Year 2 | E4: =FEPdata!E4 -> 2012 | H4: To --> | I4: =L15 -> 9606 | J4: <---- ="L" & row | O4: FEPdata
A5: $100 to $249 | B5: B 100-249 | E5: =StepByStep!$G$7 -> 12 | F5: <-- Year-end month
A6: Gain(Loss) Data - Software Extract for Year 2 and Year 1 data | K6: Col K | L6: Col L
J7: Row | K7: From | L7: To | M7: Count
B8: Number of | C8: Amount of | D8: Number of | E8: Amount of | H8: 5,000 up | I8: 25,000 & up | J8: 8 | K8: 31 | L8: 66 | M8: =L8-K8+1 -> 36
A9: Gain(Loss) | B9: =D9-1 -> 2011 | C9: =E9-1 -> 2011 | D9: =$E4 -> 2012 | E9: =$E4 -> 2012 | I9: 10,000-24,999 | J9: 9 | K9: =L8+1 -> 67 | L9: 143 | M9: =L9-L8 -> 77
A10: Category | B10: Donors | C10: Gifts ($) | D10: Donors | E10: Gifts ($) | I10: 5,000-9,999 | J10: 10 | K10: 144 | L10: 249 | M10: 106
H11: 1,000-4,999 | I11: 2,500-4,999 | J11: 11 | K11: 250 | L11: 417 | M11: 168
A12: New | B12: n/a | C12: n/a | D12: 242 | E12: 33245 | I12: 1,000-2,499 | J12: 12 | K12: 418 | L12: 1061 | M12: 644
A13: Recaptured | B13: n/a | C13: n/a | D13: 101 | E13: 8213 | H13: 250-999 | I13: 500-999 | J13: 13 | K13: 1062 | L13: 2414 | M13: 1353
A14: Upgraded | B14: 156 | C14: 13647 | D14: 156 | E14: 23331 | I14: 250-499 | J14: 14 | K14: 2415 | L14: 4953 | M14: 2539
A15: Same | B15: 133 | C15: 16746 | D15: 133 | E15: 16746 | H15: 100-249 | I15: 100-249 | J15: 15 | K15: 4954 | L15: 9606 | M15: 4653
A16: Downgraded | B16: 211 | C16: 31802 | D16: 211 | E16: 20229 | H16: Under 100 | I16: 50-99 | J16: 16 | K16: 9607 | L16: 12101 | M16: 2495
A17: Lapsed new | B17: 147 | C17: 19463 | D17: n/a | E17: n/a | I17: 25-49 | J17: 17 | K17: 12102 | L17: 14121 | M17: 2020
A18: Lapsed repeat | B18: 146 | C18: 13272 | D18: n/a | E18: n/a | F18: GiG# | G18: GiG$ | I18: 10-24 | J18: 18 | K18: 14122 | L18: 14884 | M18: 763
A19: Total | B19: =SUM(B12:B18) -> 793 | C19: =SUM(C12:C18) -> 94930 | D19: =SUM(D12:D18) -> 843 | E19: =SUM(E12:E18) -> 101764 | F19: =(D19-B19)/B19 -> 0.0630517024 | G19: =(E19-C19)/C19 -> 0.07198988729 | I19: Under 10 | J19: 19 | K19: 14885 | L19: 14981 | M19: 97
A20: 36 hilighted data fields are retrieved from gift transaction data below | M20: =SUM(M8:M19) -> 14951
B21: Number | C21: Gift$
A22: New in year 1 | B22: 251 | C22: 32641 | D22: <-- i.e., last year's new donors and gift$
A23: Database EOY1 | B23: 1692 | D23: <-- i.e., Total number of donors on file at end of Year1 | K23: 1934 | L23: <-- i.e., TOTAL number of donors on file
A24: One time donors | B24: 702 | C24: 90035 | D24: <-- i.e., Number of one-time donors and gifts | K24: 3026 | L24: <-- Total # of gifts in Year2 (vs #donors)
A25: Recaptured lapsed 1 year | D25: 66 | E25: 5320 | F25: <-- Portion of Recaptured | K25: 362 | L25: 175095 | M25: <-- Total # & $ for monthly donors in database
A26: Monthly donors in Year2 | D26: 191 | E26: 33007 | F26: <-- i.e., Year2 donors making 6 to 24 gifts. | K26: 19 | L26: 3379 | M26: <-- Portion NEW monthly donors in Year2
B28: [Asc] | D28: Gifts | F28: First | G28: Largest | H28: Monthly | I28: Gain/Loss | L28: Years of | M28: One time | N28: Recap 1
A29: Acct | B29: Year | C29: AmtYr | D29: Per year | E29: Seq# | F29: Year | G29: Year | H29: Giving | I29: Category | L29: Giving | M29: Donor | N29: Donor
A30: A | B30: B | C30: C | D30: D | E30: E | F30: F | G30: G | H30: H | I30: I | L30: L | M30: M | N30: N

Sheet FEP250to999
A1: FEP250to999 | C1: Fundraising Effectiveness Survey - 2012 | G1: =TODAY() -> 2013-12-09 | I1: Sort Largest Year (col. G) - DESC | N1: =TODAY() -> 2013-12-09 | O1: 10:49:36
A2: =StepByStep!$A$3 -> 0 | O2: 10:49:51
A3: Growth-in-Giving is measured for Year 2: | H3: From --> | I3: =K13 -> 1062 | J3: <---- ="K" & row | O3: =O2-O1 -> 00:00:15
D4: Year 2 | E4: =FEPdata!E4 -> 2012 | H4: To --> | I4: =L14 -> 4953 | J4: <---- ="L" & row | O4: FEPdata
A5: $250 to $999 | B5: C 250-999 | E5: =StepByStep!$G$7 -> 12 | F5: <-- Year-end month
A6: Gain(Loss) Data - Software Extract for Year 2 and Year 1 data | K6: Col K | L6: Col L
J7: Row | K7: From | L7: To | M7: Count
B8: Number of | C8: Amount of | D8: Number of | E8: Amount of | H8: 5,000 up | I8: 25,000 & up | J8: 8 | K8: 31 | L8: 66 | M8: =L8-K8+1 -> 36
A9: Gain(Loss) | B9: =D9-1 -> 2011 | C9: =E9-1 -> 2011 | D9: =$E4 -> 2012 | E9: =$E4 -> 2012 | I9: 10,000-24,999 | J9: 9 | K9: =L8+1 -> 67 | L9: 143 | M9: =L9-L8 -> 77
A10: Category | B10: Donors | C10: Gifts ($) | D10: Donors | E10: Gifts ($) | I10: 5,000-9,999 | J10: 10 | K10: 144 | L10: 249 | M10: 106
H11: 1,000-4,999 | I11: 2,500-4,999 | J11: 11 | K11: 250 | L11: 417 | M11: 168
A12: New | B12: n/a | C12: n/a | D12: 79 | E12: 30246 | I12: 1,000-2,499 | J12: 12 | K12: 418 | L12: 1061 | M12: 644
A13: Recaptured | B13: n/a | C13: n/a | D13: 36 | E13: 9102 | H13: 250-999 | I13: 500-999 | J13: 13 | K13: 1062 | L13: 2414 | M13: 1353
A14: Upgraded | B14: 261 | C14: 72482 | D14: 261 | E14: 115251 | I14: 250-499 | J14: 14 | K14: 2415 | L14: 4953 | M14: 2539
A15: Same | B15: 63 | C15: 19118 | D15: 63 | E15: 19118 | H15: 100-249 | I15: 100-249 | J15: 15 | K15: 4954 | L15: 9606 | M15: 4653
A16: Downgraded | B16: 225 | C16: 90964 | D16: 225 | E16: 61243 | H16: Under 100 | I16: 50-99 | J16: 16 | K16: 9607 | L16: 12101 | M16: 2495
A17: Lapsed new | B17: 25 | C17: 9125 | D17: n/a | E17: n/a | I17: 25-49 | J17: 17 | K17: 12102 | L17: 14121 | M17: 2020
A18: Lapsed repeat | B18: 86 | C18: 19607 | D18: n/a | E18: n/a | F18: GiG# | G18: GiG$ | I18: 10-24 | J18: 18 | K18: 14122 | L18: 14884 | M18: 763
A19: Total | B19: =SUM(B12:B18) -> 660 | C19: =SUM(C12:C18) -> 211296 | D19: =SUM(D12:D18) -> 664 | E19: =SUM(E12:E18) -> 234960 | F19: =(D19-B19)/B19 -> 0.006060606061 | G19: =(E19-C19)/C19 -> 0.1119945479 | I19: Under 10 | J19: 19 | K19: 14885 | L19: 14981 | M19: 97
A20: 36 hilighted data fields are retrieved from gift transaction data below | M20: =SUM(M8:M19) -> 14951
B21: Number | C21: Gift$
A22: New in year 1 | B22: 90 | C22: 25140 | D22: <-- i.e., last year's new donors and gift$
A23: Database EOY1 | B23: 904 | D23: <-- i.e., Total number of donors on file at end of Year1 | K23: 983 | L23: <-- i.e., TOTAL number of donors on file
A24: One time donors | B24: 109 | C24: 39741 | D24: <-- i.e., Number of one-time donors and gifts | K24: 5108 | L24: <-- Total # of gifts in Year2 (vs #donors)
A25: Recaptured lapsed 1 year | D25: 19 | E25: 4838 | F25: <-- Portion of Recaptured | K25: 519 | L25: 688126 | M25: <-- Total # & $ for monthly donors in database
A26: Monthly donors in Year2 | D26: 353 | E26: 148207 | F26: <-- i.e., Year2 donors making 6 to 24 gifts. | K26: 17 | L26: 7473 | M26: <-- Portion NEW monthly donors in Year2
B28: [Asc] | D28: Gifts | F28: First | G28: Largest | H28: Monthly | I28: Gain/Loss | L28: Years of | M28: One time | N28: Recap 1
A29: Acct | B29: Year | C29: AmtYr | D29: Per year | E29: Seq# | F29: Year | G29: Year | H29: Giving | I29: Category | L29: Giving | M29: Donor | N29: Donor
A30: A | B30: B | C30: C | D30: D | E30: E | F30: F | G30: G | H30: H | I30: I | L30: L | M30: M | N30: N

Sheet FEP1000to4999
A1: FEP1000to4999 | C1: Fundraising Effectiveness Survey - 2012 | G1: =TODAY() -> 2013-12-09 | I1: Sort Largest Year (col. G) - DESC | N1: =TODAY() -> 2013-12-09 | O1: 10:49:33
A2: =StepByStep!$A$3 -> 0 | O2: 10:49:36
A3: Growth-in-Giving is measured for Year 2: | H3: From --> | I3: =K11 -> 250 | J3: <---- ="K" & row | O3: =O2-O1 -> 00:00:03
D4: Year 2 | E4: =FEPdata!E4 -> 2012 | H4: To --> | I4: =L12 -> 1061 | J4: <---- ="L" & row | O4: FEPdata
A5: $1,000 to $4,999 | B5: D 1,000-4,999 | E5: =StepByStep!$G$7 -> 12 | F5: <-- Year-end month
A6: Gain(Loss) Data - Software Extract for Year 2 and Year 1 data | K6: Col K | L6: Col L
J7: Row | K7: From | L7: To | M7: Count
B8: Number of | C8: Amount of | D8: Number of | E8: Amount of | H8: 5,000 up | I8: 25,000 & up | J8: 8 | K8: 31 | L8: 66 | M8: =L8-K8+1 -> 36
A9: Gain(Loss) | B9: =D9-1 -> 2011 | C9: =E9-1 -> 2011 | D9: =$E4 -> 2012 | E9: =$E4 -> 2012 | I9: 10,000-24,999 | J9: 9 | K9: =L8+1 -> 67 | L9: 143 | M9: =L9-L8 -> 77
A10: Category | B10: Donors | C10: Gifts ($) | D10: Donors | E10: Gifts ($) | I10: 5,000-9,999 | J10: 10 | K10: 144 | L10: 249 | M10: 106
H11: 1,000-4,999 | I11: 2,500-4,999 | J11: 11 | K11: 250 | L11: 417 | M11: 168
A12: New | B12: n/a | C12: n/a | D12: 6 | E12: 7021 | I12: 1,000-2,499 | J12: 12 | K12: 418 | L12: 1061 | M12: 644
A13: Recaptured | B13: n/a | C13: n/a | D13: 10 | E13: 10519 | H13: 250-999 | I13: 500-999 | J13: 13 | K13: 1062 | L13: 2414 | M13: 1353
A14: Upgraded | B14: 55 | C14: 59523 | D14: 55 | E14: 90392 | I14: 250-499 | J14: 14 | K14: 2415 | L14: 4953 | M14: 2539
A15: Same | B15: 13 | C15: 14197 | D15: 13 | E15: 14197 | H15: 100-249 | I15: 100-249 | J15: 15 | K15: 4954 | L15: 9606 | M15: 4653
A16: Downgraded | B16: 47 | C16: 68748 | D16: 47 | E16: 49099 | H16: Under 100 | I16: 50-99 | J16: 16 | K16: 9607 | L16: 12101 | M16: 2495
A17: Lapsed new | B17: 3 | C17: 3750 | D17: n/a | E17: n/a | I17: 25-49 | J17: 17 | K17: 12102 | L17: 14121 | M17: 2020
A18: Lapsed repeat | B18: 12 | C18: 12819 | D18: n/a | E18: n/a | F18: GiG# | G18: GiG$ | I18: 10-24 | J18: 18 | K18: 14122 | L18: 14884 | M18: 763
A19: Total | B19: =SUM(B12:B18) -> 130 | C19: =SUM(C12:C18) -> 159037 | D19: =SUM(D12:D18) -> 131 | E19: =SUM(E12:E18) -> 171228 | F19: =(D19-B19)/B19 -> 0.007692307692 | G19: =(E19-C19)/C19 -> 0.07665511799 | I19: Under 10 | J19: 19 | K19: 14885 | L19: 14981 | M19: 97
A20: 36 hilighted data fields are retrieved from gift transaction data below | M20: =SUM(M8:M19) -> 14951
B21: Number | C21: Gift$
A22: New in year 1 | B22: 13 | C22: 13678 | D22: <-- i.e., last year's new donors and gift$
A23: Database EOY1 | B23: 170 | D23: <-- i.e., Total number of donors on file at end of Year1 | K23: 176 | L23: <-- i.e., TOTAL number of donors on file
A24: One time donors | B24: 24 | C24: 35401 | D24: <-- i.e., Number of one-time donors and gifts | K24: 1056 | L24: <-- Total # of gifts in Year2 (vs #donors)
A25: Recaptured lapsed 1 year | D25: 10 | E25: 10519 | F25: <-- Portion of Recaptured | K25: 78 | L25: 370360 | M25: <-- Total # & $ for monthly donors in database
A26: Monthly donors in Year2 | D26: 63 | E26: 91696 | F26: <-- i.e., Year2 donors making 6 to 24 gifts. | K26: 3 | L26: 3907 | M26: <-- Portion NEW monthly donors in Year2
B28: [Asc] | D28: Gifts | F28: First | G28: Largest | H28: Monthly | I28: Gain/Loss | L28: Years of | M28: One time | N28: Recap 1
A29: Acct | B29: Year | C29: AmtYr | D29: Per year | E29: Seq# | F29: Year | G29: Year | H29: Giving | I29: Category | L29: Giving | M29: Donor | N29: Donor
A30: A | B30: B | C30: C | D30: D | E30: E | F30: F | G30: G | H30: H | I30: I | L30: L | M30: M | N30: N

Sheet FEP5000Up
A1: FEP5000Up | C1: Fundraising Effectiveness Survey - 2012 | G1: =TODAY() -> 2013-12-09 | I1: Sort Largest Year (col. G) - DESC | N1: =TODAY() -> 2013-12-09 | O1: 10:49:32
A2: =StepByStep!$A$3 -> 0 | O2: 10:49:33
A3: Growth-in-Giving is measured for Year 2: | H3: From --> | I3: =K8 -> 31 | J3: <---- ="K" & row | O3: =O2-O1 -> 00:00:01
D4: Year 2 | E4: =FEPdata!E4 -> 2012 | H4: To --> | I4: =L10 -> 249 | J4: <---- ="L" & row | O4: FEPdata
A5: $5,000 and up | B5: E 5,000 up | E5: =StepByStep!$G$7 -> 12 | F5: <-- Year-end month
A6: Gain(Loss) Data - Software Extract for Year 2 and Year 1 data | K6: Col K | L6: Col L
J7: Row | K7: From | L7: To | M7: Count
B8: Number of | C8: Amount of | D8: Number of | E8: Amount of | H8: 5,000 up | I8: 25,000 & up | J8: 8 | K8: 31 | L8: 66 | M8: =L8-K8+1 -> 36
A9: Gain(Loss) | B9: =D9-1 -> 2011 | C9: =E9-1 -> 2011 | D9: =$E4 -> 2012 | E9: =$E4 -> 2012 | I9: 10,000-24,999 | J9: 9 | K9: =L8+1 -> 67 | L9: 143 | M9: =L9-L8 -> 77
A10: Category | B10: Donors | C10: Gifts ($) | D10: Donors | E10: Gifts ($) | I10: 5,000-9,999 | J10: 10 | K10: 144 | L10: 249 | M10: 106
H11: 1,000-4,999 | I11: 2,500-4,999 | J11: 11 | K11: 250 | L11: 417 | M11: 168
A12: New | B12: n/a | C12: n/a | D12: 1 | E12: 40000 | I12: 1,000-2,499 | J12: 12 | K12: 418 | L12: 1061 | M12: 644
A13: Recaptured | B13: n/a | C13: n/a | D13: 3 | E13: 22178 | H13: 250-999 | I13: 500-999 | J13: 13 | K13: 1062 | L13: 2414 | M13: 1353
A14: Upgraded | B14: 11 | C14: 35049 | D14: 11 | E14: 73564 | I14: 250-499 | J14: 14 | K14: 2415 | L14: 4953 | M14: 2539
A15: Same | B15: 1 | C15: 600 | D15: 1 | E15: 600 | H15: 100-249 | I15: 100-249 | J15: 15 | K15: 4954 | L15: 9606 | M15: 4653
A16: Downgraded | B16: 10 | C16: 117497 | D16: 10 | E16: 54226 | H16: Under 100 | I16: 50-99 | J16: 16 | K16: 9607 | L16: 12101 | M16: 2495
A17: Lapsed new | B17: 3 | C17: 56000 | D17: n/a | E17: n/a | I17: 25-49 | J17: 17 | K17: 12102 | L17: 14121 | M17: 2020
A18: Lapsed repeat | B18: 5 | C18: 112100 | D18: n/a | E18: n/a | F18: GiG# | G18: GiG$ | I18: 10-24 | J18: 18 | K18: 14122 | L18: 14884 | M18: 763
A19: Total | B19: =SUM(B12:B18) -> 30 | C19: =SUM(C12:C18) -> 321246 | D19: =SUM(D12:D18) -> 26 | E19: =SUM(E12:E18) -> 190568 | F19: =(D19-B19)/B19 -> -0.1333333333 | G19: =(E19-C19)/C19 -> -0.4067848316 | I19: Under 10 | J19: 19 | K19: 14885 | L19: 14981 | M19: 97
A20: 36 hilighted data fields are retrieved from gift transaction data below | M20: =SUM(M8:M19) -> 14951
B21: Number | C21: Gift$
A22: New in year 1 | B22: 6 | C22: 95800 | D22: <-- i.e., last year's new donors and gift$
A23: Database EOY1 | B23: 55 | D23: <-- i.e., Total number of donors on file at end of Year1 | K23: 56 | L23: <-- i.e., TOTAL number of donors on file
A24: One time donors | B24: 20 | C24: 351949 | D24: <-- i.e., Number of one-time donors and gifts | K24: 322 | L24: <-- Total # of gifts in Year2 (vs #donors)
A25: Recaptured lapsed 1 year | D25: 2 | E25: 21678 | F25: <-- Portion of Recaptured | K25: 17 | L25: 400878 | M25: <-- Total # & $ for monthly donors in database
A26: Monthly donors in Year2 | D26: 12 | E26: 79242 | F26: <-- i.e., Year2 donors making 6 to 24 gifts. | K26: 0 | L26: 0 | M26: <-- Portion NEW monthly donors in Year2
B28: [Asc] | D28: Gifts | F28: First | G28: Largest | H28: Monthly | I28: Gain/Loss | L28: Years of | M28: One time | N28: Recap 1
A29: Acct | B29: Year | C29: AmtYr | D29: Per year | E29: Seq# | F29: Year | G29: Year | H29: Giving | I29: Category | K29: Dupes | L29: Giving | M29: Donor | N29: Donor
A30: A | B30: B | C30: C | D30: D | E30: E | F30: F | G30: G | H30: H | I30: I | J30: J | K30: K | L30: L | M30: M | N30: N
